bitfinex/quotes_ETHUSD_20220309
["timestamp","ask_amount","ask_price","bid_price","bid_amount"]
[1646820167976,6.3177369,2752.7,2752.1,0.00733152]
[1646820167977,0.90868,2752.6,2752.1,0.00733152]
[1646820168273,0.90868,2752.6,2752.3,0.00402785]
[1646820169277,0.3,2752.7,2752.1,0.00733152]
[1646820169473,0.3,2752.7,2752.3,0.00396473]
[1646820169772,0.90852,2752.9,2752.3,0.00396473]
[1646820169972,0.95823556,2752.9,2752.3,0.00396473]
[1646820170418,0.95823556,2752.9,2752.1,0.00733152]
[1646820170419,1.25823556,2752.9,2752.1,0.00733152]
[1646820170618,1.25823556,2752.9,2752.3,0.00396477]
[1646820170619,0.95823556,2752.9,2752.3,0.00396477]
[1646820171522,0.95823556,2752.9,2752.1,0.67757746]
[1646820171926,0.95823556,2752.9,2752.3,0.00380682]
[1646820172724,0.95823556,2752.9,2752.1,0.67757746]
[1646820173122,0.95823556,2752.9,2752.3,0.00386993]
[1646820174174,0.95823556,2752.9,2752.3,0.00773986]
[1646820174373,0.95823556,2752.9,2752.3,0.00386993]
[1646820174777,4.45823556,2752.9,2752.3,0.00386993]
[1646820174974,5.6377308,2752.9,2752.3,0.00386993]
[1646820175274,6.6377308,2752.9,2752.1,0.67757746]
[1646820175478,3.1377308,2752.9,2752.3,0.00387846]
[1646820175877,2.1377308,2752.9,2752.3,0.00387846]
[1646820176075,3.1377308,2752.9,2752.3,0.00387846]
[1646820176274,2.1377308,2752.9,2752.3,0.00387846]
[1646820176475,2.1377308,2752.9,2752.1,0.00733152]
[1646820176476,3.1377308,2752.9,2752.1,0.00733152]
[1646820176675,0.5,2752.5,2752.1,0.00733152]
[1646820176883,0.5,2752.5,2752.3,0.00387846]
[1646820177082,0.90873,2752.6,2752.3,0.00387846]
[1646820177276,0.5,2752.4,2752.3,0.00387846]
[1646820177475,0.5,2752.4,2752.1,0.00733152]
[1646820177717,0.90873,2752.6,2752.1,0.00733152]
[1646820177917,0.90873,2752.6,2752.3,0.00387842]
[1646820178818,0.90873,2752.6,2752.1,0.00733152]
[1646820178819,0.5,2752.3,2752.1,0.00733152]
[1646820179018,0.90873,2752.6,2752.5,0.29998146]
[1646820180019,1.40873,2752.6,2752.5,0.29998146]
[1646820180820,0.5,2752.6,2752.5,0.29998146]
[1646820182478,0.04971556,2752.9,2752.5,0.29998146]
[1646820183282,0.04971556,2752.9,2752.6,0.445]
[1646820183479,0.04971556,2752.9,2752.6,1.11524594]
[1646820184087,0.04971556,2752.9,2752.6,0.445]
[1646820184279,0.04971556,2752.9,2752.5,0.29998146]
[1646820185081,0.05272296,2752.6,2752.5,0.29998146]
[1646820185324,0.55272296,2752.6,2752.5,0.29998146]
[1646820185724,0.55272296,2752.6,2752.5,0.9702274]
[1646820185924,0.55272296,2752.6,2752.5,1.4152274]
[1646820186125,0.55272296,2752.6,2752.5,0.74498146]
[1646820186328,0.55272296,2752.6,2752.5,1.10758146]
[1646820186525,0.05272296,2752.6,2752.5,1.10758146]
[1646820186924,0.05272296,2752.6,2752.5,2.28996373]
[1646820190369,0.04304467,2752.6,2752.5,2.28996373]
[1646820190869,0.04304467,2752.6,2752.5,2.59795771]
[1646820191873,0.04304467,2752.6,2752.5,1.48236373]
[1646820192072,0.35037625,2752.6,2752.5,1.48236373]
[1646820193318,0.04304467,2752.6,2752.5,1.48236373]
[1646820193720,0.04304467,2752.6,2752.5,2.15295771]
[1646820197271,0.04304467,2752.6,2752.5,1.48236373]
[1646820198273,0.04304467,2752.6,2752.5,2.15295771]
[1646820199074,0.029168,2753.3,2753.0,0.32666111]
[1646820199276,0.30830994,2753.2,2753.1,1.18238227]
[1646820202323,0.60830994,2753.2,2753.1,1.18238227]
[1646820202522,0.60830994,2753.2,2753.1,1.74169737]
[1646820203125,0.60830994,2753.2,2753.1,1.29669737]
[1646820204287,0.6582874,2753.2,2753.1,1.29669737]
[1646820206097,1.54880291,2753.2,2753.1,1.29669737]
[1646820206302,5.04880291,2753.2,2753.1,1.29669737]
[1646820206699,6.04880291,2753.2,2753.1,1.29669737]
[1646820206897,2.54880291,2753.2,2753.1,1.29669737]
[1646820207922,0.3582874,2753.2,2753.1,1.29669737]
[1646820209324,0.6582874,2753.2,2753.1,1.29669737]
[1646820222400,0.37038049,2753.6,2753.3,5.0]
[1646820222598,0.88707863,2754.3,2753.6,0.5998749]
[1646820222823,1.2095,2754.4,2753.7,0.445]
[1646820222824,3.00464863,2754.4,2753.7,0.445]
[1646820223023,2.11757,2754.4,2753.7,0.445]
[1646820223225,0.90807,2754.4,2753.7,0.445]
[1646820223821,0.90807,2754.4,2753.7,0.5272075]
[1646820224427,0.88707863,2754.6,2753.7,0.5272075]
[1646820224629,4.38707863,2754.6,2753.7,0.5272075]
[1646820225429,0.88707863,2754.6,2753.7,0.5272075]
[1646820225831,2.09377863,2754.7,2753.7,0.5272075]
[1646820226232,0.00240024,2754.3,2753.7,0.5272075]
[1646820226678,0.00240024,2754.3,2753.7,0.8898075]
[1646820226876,2.09377863,2754.7,2753.7,11.5872075]
[1646820227075,0.00240024,2754.1,2753.7,11.5872075]
[1646820228080,2.39377863,2754.7,2753.7,11.5872075]
[1646820228279,0.3,2754.7,2753.7,11.9498075]
[1646820228478,2.18707863,2754.8,2753.7,11.9498075]
[1646820228479,0.00240024,2754.0,2753.7,12.9498075]
[1646820228679,0.00240024,2754.0,2753.7,1.8898075]
[1646820228879,0.00240024,2754.0,2753.7,1.7738075]
[1646820229480,0.145521,2754.5,2753.7,1.7738075]
[1646820229680,0.00240024,2754.0,2753.7,1.7738075]
[1646820230233,0.00240024,2754.0,2753.7,1.3288075]
[1646820230427,0.00240024,2754.0,2753.7,0.0822075]
[1646820230625,5.68707863,2754.4,2753.7,0.0822075]
[1646820230825,0.00207966,2754.0,2753.7,0.0822075]
[1646820231828,0.9082158,2754.1,2753.7,0.0822075]
[1646820232025,0.00207966,2754.0,2753.7,0.0822075]
[1646820232425,0.30207966,2754.0,2753.7,0.0822075]
[1646820233327,1.00207966,2754.0,2753.7,0.0822075]
[1646820234176,0.7,2754.0,2753.7,0.0822075]
[1646820234379,0.70239634,2754.0,2753.7,0.0822075]
[1646820235376,1.0,2754.0,2753.7,0.0822075]
[1646820235575,1.00239634,2754.0,2753.7,0.0822075]
[1646820236376,1.00239634,2754.0,2753.8,0.445]
[1646820236576,1.0,2754.0,2753.8,0.445]
[1646820236777,0.7,2754.0,2753.9,11.06]
[1646820236982,0.7,2754.0,2753.9,11.5872075]
[1646820236983,10.00239634,2754.0,2753.9,11.5872075]
[1646820237176,10.00239634,2754.0,2753.9,12.5872075]
[1646820237823,10.0,2754.0,2753.9,12.5872075]
[1646820238424,10.0,2754.0,2753.9,12.9498075]
[1646820239527,10.0,2754.0,2753.9,13.1312075]
[1646820239728,10.04329685,2754.0,2753.9,12.7686075]
[1646820240128,10.04329685,2754.0,2753.9,0.7086075]
[1646820240329,10.34329685,2754.0,2753.9,0.5272075]
[1646820240731,10.34329685,2754.0,2753.9,11.5872075]
[1646820241131,10.04329685,2754.0,2753.9,11.5872075]
[1646820241575,10.04329685,2754.0,2753.9,12.5872075]
[1646820242373,10.04329685,2754.0,2753.9,13.79535412]
[1646820242776,8.4496002,2754.0,2753.9,13.79535412]
[1646820243577,8.4496002,2754.0,2753.9,14.15795412]
[1646820243978,8.4496002,2754.0,2753.9,14.33935412]
[1646820244182,8.4496002,2754.0,2753.9,13.97675412]
[1646820244380,8.48491651,2754.0,2753.9,13.97675412]
[1646820245240,8.48491651,2754.0,2753.9,14.33935412]
[1646820245434,8.48491651,2754.0,2753.9,14.36852212]
[1646820245631,8.48491651,2754.0,2753.9,14.00592212]
[1646820245833,8.48491651,2754.0,2753.9,1.91675412]
[1646820246034,8.48491651,2754.0,2753.9,1.73535412]
[1646820246632,8.48491651,2754.0,2753.9,12.79535412]
[1646820247233,8.48491651,2754.0,2753.9,1.73535412]
[1646820249073,8.48491651,2754.0,2753.9,12.79535412]
[1646820249771,8.48491651,2754.0,2753.9,13.79535412]
[1646820250874,8.48491651,2754.0,2753.9,1.73535412]
[1646820253223,8.48491651,2754.0,2753.9,12.79535412]
[1646820253421,8.48491651,2754.0,2753.9,1.73535412]
[1646820253821,8.48491651,2754.0,2753.9,1.29035412]
[1646820254226,8.78491651,2754.0,2753.9,1.29035412]
[1646820255131,8.48491651,2754.0,2753.9,1.29035412]
[1646820255329,8.48491651,2754.0,2753.9,12.35035412]
[1646820256775,8.48491651,2754.0,2753.9,12.37952212]
[1646820256975,8.48491651,2754.0,2753.9,13.35035412]
[1646820257176,8.48491651,2754.0,2753.9,1.29035412]
[1646820258275,8.48491651,2754.0,2753.9,12.35035412]
[1646820258675,8.48491651,2754.0,2753.9,13.35035412]
[1646820258876,8.48491651,2754.0,2753.9,12.35035412]
[1646820261134,8.48491651,2754.0,2753.9,1.29035412]
[1646820262729,6.89134569,2754.0,2753.9,1.29035412]
[1646820264180,7.19134569,2754.0,2753.9,1.29035412]
[1646820264784,7.22395594,2754.0,2753.9,1.29035412]
[1646820265184,7.22395594,2754.0,2753.9,1.14035412]
[1646820265384,7.22395594,2754.0,2753.6,1.29842335]
[1646820265587,7.22395594,2754.0,2753.6,0.6290429]
[1646820265785,7.22395594,2754.0,2753.6,1.29842335]
[1646820266586,7.22395594,2754.0,2753.6,0.6290429]
[1646820266785,0.00198895,2753.9,2753.6,0.6290429]
[1646820267386,0.00198895,2753.9,2753.6,1.29842335]
[1646820267842,7.22395594,2754.0,2753.6,1.29842335]
[1646820268044,0.00198895,2753.9,2753.6,1.29842335]
[1646820268645,0.00198895,2753.9,2753.6,12.35842335]
[1646820268845,0.00198895,2753.9,2753.6,13.35842335]
[1646820269045,7.22395594,2754.0,2753.6,13.35842335]
[1646820269243,0.00198895,2753.9,2753.6,13.35842335]
[1646820270145,7.22395594,2754.0,2753.6,13.35842335]
[1646820270549,0.00198895,2753.9,2753.6,13.35842335]
[1646820271347,7.22395594,2754.0,2753.6,2.29842335]
[1646820271571,0.00198896,2753.9,2753.6,2.29842335]
[1646820271770,0.00198896,2753.9,2753.6,1.29842335]
[1646820272575,7.22395594,2754.0,2753.6,1.29842335]
[1646820272773,0.00198896,2753.9,2753.6,1.29842335]
[1646820273775,6.92395594,2754.0,2753.6,1.29842335]
[1646820273974,0.00198896,2753.9,2753.6,1.29842335]
[1646820275078,6.93636563,2754.0,2753.6,1.29842335]
[1646820275327,0.00198897,2753.9,2753.6,1.29842335]
[1646820275726,0.00198897,2753.9,2753.6,0.6290429]
[1646820276129,6.93636563,2754.0,2753.6,0.6290429]
[1646820276328,6.93636563,2754.0,2753.6,12.35842335]
[1646820276729,6.93636563,2754.0,2753.7,11.72938045]
[1646820276931,6.93636563,2754.0,2753.7,0.69854845]
[1646820277129,6.93636563,2754.0,2753.9,0.91798677]
[1646820278330,6.93636563,2754.0,2753.9,0.94715477]
[1646820278535,6.93636563,2754.0,2753.9,1.61653522]
[1646820280377,6.93636563,2754.0,2753.9,0.94715477]
[1646820280778,6.93636563,2754.0,2753.9,0.029168]
[1646820280979,6.93636563,2754.0,2753.9,0.67121107]
[1646820281382,6.93636563,2754.0,2753.7,0.91846868]
[1646820281581,6.93636563,2754.0,2753.7,1.91846868]
[1646820281779,6.93636563,2754.0,2753.7,0.91846868]
[1646820281979,6.93636563,2754.0,2753.9,0.67144484]
[1646820282380,6.93636563,2754.0,2753.7,1.89401864]
[1646820282580,6.9387701,2754.0,2753.7,1.89401864]
[1646820282827,5.34489257,2754.0,2753.9,0.67146127]
[1646820283028,5.34489257,2754.0,2753.9,0.67146872]
[1646820283228,5.64489257,2754.0,2753.8,0.67146872]
[1646820283427,5.6424881,2754.0,2753.8,0.67146872]
[1646820284129,5.6424881,2754.0,2753.9,0.67146872]
[1646820284529,5.6424881,2754.0,2753.8,0.67146872]
[1646820284731,5.6424881,2754.0,2753.9,0.67146872]
[1646820284933,5.69022605,2754.0,2753.9,0.67146872]
[1646820285131,6.04026364,2754.0,2753.9,0.67146872]
[1646820285532,6.04026364,2754.0,2753.8,1.81308864]
[1646820285733,0.65003759,2753.9,2753.8,1.81308864]
[1646820286132,0.65003759,2753.9,2753.8,1.14161992]
[1646820288189,5.39263052,2754.0,2753.8,1.14161992]
[1646820288190,5.69022605,2754.0,2753.8,1.14161992]
[1646820288395,5.69022605,2754.0,2753.9,0.67154669]
[1646820288594,6.04268456,2754.0,2753.9,0.67154669]
[1646820289396,6.04028009,2754.0,2753.9,0.67154669]
[1646820289696,6.04028009,2754.0,2753.8,1.14161992]
[1646820289897,5.69022605,2754.0,2753.8,1.14161992]
[1646820290833,5.69263052,2754.0,2753.8,1.14161992]
[1646820291733,5.69022605,2754.0,2753.8,1.14161992]
[1646820292135,5.69263052,2754.0,2753.8,1.14161992]
[1646820292536,6.60053052,2754.0,2753.8,2.0600886]
[1646820292836,6.60053052,2754.0,2753.9,1.14161992]
[1646820293036,6.59812605,2754.0,2753.9,1.14161992]
[1646820293236,6.60053052,2754.0,2753.9,1.14161992]
[1646820294273,6.96096708,2754.0,2753.9,1.14161992]
[1646820295075,5.67781636,2754.0,2753.9,1.14161992]
[1646820295277,5.67781636,2754.0,2753.9,1.17078792]
[1646820295278,5.37781636,2754.0,2753.9,1.17078792]
[1646820296077,5.37781636,2754.0,2753.9,2.34588899]
[1646820297283,5.67781636,2754.0,2753.9,13.40588899]
[1646820297478,5.37781636,2754.0,2753.9,13.85088899]
[1646820297732,5.37781636,2754.0,2753.9,14.85088899]
[1646820297922,5.37781636,2754.0,2753.9,15.74018967]
[1646820298422,5.37781636,2754.0,2753.9,15.74638523]
[1646820298622,5.37781636,2754.0,2753.9,14.85088899]
[1646820300026,5.37781636,2754.0,2753.9,15.38483113]
[1646820301028,5.37781636,2754.0,2753.9,2.58661992]
[1646820301230,5.37781636,2754.0,2753.9,2.48175651]
[1646820301476,5.67781636,2754.0,2753.9,1.58661992]
[1646820301678,5.67781636,2754.0,2753.9,2.25801806]
[1646820301880,5.67781636,2754.0,2753.9,1.81301806]
[1646820302077,5.67781636,2754.0,2753.9,1.17078792]
[1646820302878,4.08351475,2754.0,2753.9,1.14161992]
[1646820304080,4.38351475,2754.0,2753.9,1.14161992]
[1646820305328,4.38351475,2754.0,2753.9,0.67132206]
[1646820305729,4.38351475,2754.0,2753.9,2.06433508]
[1646820307135,4.38351475,2754.0,2753.9,1.17078792]
[1646820308131,4.33351475,2754.0,2753.9,1.17078792]
[1646820308530,4.33351475,2754.0,2753.9,2.06592451]
[1646820308831,4.33351475,2754.0,2753.9,1.17078792]
[1646820309075,4.08351475,2754.0,2753.9,2.06575079]
[1646820309474,4.08351475,2754.0,2753.9,5.11578792]
[1646820309677,4.08351475,2754.0,2753.9,16.17578792]
[1646820309876,4.08351475,2754.0,2753.9,17.17578792]
[1646820310076,4.13942162,2754.0,2753.9,17.17578792]
[1646820310680,4.13942162,2754.0,2753.9,13.67578792]
[1646820311682,4.13942162,2754.0,2753.9,13.64661992]
[1646820311885,4.13942162,2754.0,2753.9,18.51293158]
[1646820312483,4.13942162,2754.0,2753.9,18.51729181]
[1646820313726,3.95007,2754.8,2753.9,18.51729181]
[1646820313727,0.90763,2755.0,2754.3,11.4226]
[1646820313927,5.33779592,2755.1,2754.3,11.4226]
[1646820313928,3.52257592,2755.1,2754.7,11.06]
[1646820314129,3.52257592,2755.1,2754.9,11.06]
[1646820314328,3.52257592,2755.1,2755.0,12.70495592]
[1646820314535,0.94326531,2755.6,2755.0,12.70495592]
[1646820314536,0.94326531,2755.6,2755.0,16.20495592]
[1646820314731,0.94326531,2755.6,2755.5,0.029168]
[1646820314935,0.94326531,2755.6,2755.5,13.30966731]
[1646820315131,0.4378425,2756.0,2755.7,11.06]
[1646820315332,0.4378425,2756.0,2755.8,12.64661992]
[1646820315533,0.4378425,2756.0,2755.9,1.14161992]
[1646820315834,0.80859442,2756.0,2755.9,12.64661992]
[1646820316134,0.81099889,2756.0,2755.9,1.58661992]
[1646820316475,0.44024697,2756.0,2755.9,1.58661992]
[1646820316875,0.44024697,2756.0,2755.9,12.64661992]
[1646820317078,0.4378425,2756.0,2755.9,12.64661992]
[1646820317277,0.4378425,2756.0,2755.9,12.67578792]
[1646820317481,0.4378425,2756.0,2755.9,13.67578792]
[1646820317677,0.00240447,2756.1,2756.0,11.3106223]
[1646820317678,4.47e-06,2756.1,2756.0,11.3106223]
[1646820317878,0.021001,2756.9,2756.0,16.42641022]
[1646820317879,0.36993297,2756.8,2756.0,16.42641022]
[1646820318079,0.36993297,2756.8,2756.5,11.06]
[1646820318280,0.36993297,2756.8,2756.6,11.534168]
[1646820318479,0.36993297,2756.8,2756.6,11.563336]
[1646820318779,0.66996028,2757.5,2756.8,11.06]
[1646820318978,0.90675,2757.4,2756.9,11.534168]
[1646820319178,0.36950078,2757.3,2756.9,11.534168]
[1646820319678,2.18323078,2757.3,2756.9,11.505]
[1646820319878,0.36950078,2757.2,2756.9,0.445]
[1646820320084,2.18330078,2757.2,2756.9,0.445]
[1646820320331,1.8138,2757.2,2756.9,0.445]
[1646820320634,1.8138,2757.2,2756.9,0.474168]
[1646820321033,3.32065,2757.2,2756.9,11.534168]
[1646820321831,2.72065,2757.2,2757.0,0.029168]
[1646820322031,2.72065,2757.2,2757.1,0.445]
[1646820322233,1.81619846,2757.2,2757.1,0.445]
[1646820322830,1.81619846,2757.2,2757.1,0.20827128]
[1646820323030,2.1138,2757.2,2757.1,0.20827128]
[1646820323232,2.4138,2757.2,2757.1,0.23743928]
[1646820323430,2.4138,2757.2,2757.1,0.20827128]
[1646820324081,2.4138,2757.2,2756.9,0.029168]
[1646820324279,2.4138,2757.2,2756.9,0.474168]
[1646820324480,2.4138,2757.2,2756.9,0.445]
[1646820324679,2.4138,2757.2,2756.0,5.41615]
[1646820324680,3.3208981,2757.2,2756.0,5.41615]
[1646820324882,1.81431,2757.1,2756.0,4.2091]
[1646820325080,1.8451175,2757.1,2756.2,0.445]
[1646820325786,0.00239846,2756.7,2756.3,11.06]
[1646820325988,0.00239846,2756.7,2756.3,11.505]
[1646820326185,0.00239846,2756.7,2756.4,0.1812]
[1646820326386,0.00239846,2756.7,2756.5,0.445]
[1646820326586,0.90695,2756.8,2756.5,0.445]
[1646820326786,0.90695,2756.8,2756.6,11.06]
[1646820326988,0.00239846,2756.7,2756.6,12.96682]
[1646820327191,0.00239846,2756.7,2756.6,11.505]
[1646820327839,0.00239846,2756.7,2756.4,0.1812]
[1646820327840,0.90695,2756.8,2756.4,0.1812]
[1646820328041,0.90695,2756.8,2756.2,0.6262]
[1646820328235,0.90911046,2756.8,2756.2,0.6262]
[1646820328436,3.5,2756.7,2756.2,0.1812]
[1646820328645,3.5,2756.7,2755.7,2.6717]
[1646820328646,3.62947,2756.6,2755.7,0.1812]
[1646820328839,0.90747,2756.4,2755.7,0.1812]
[1646820329040,1.05073086,2756.1,2755.2,0.445]
[1646820329239,1.8149,2756.0,2755.3,1.11415451]
[1646820329641,0.3,2755.9,2755.3,1.11415451]
[1646820329837,1.20745,2755.9,2755.3,12.61915451]
[1646820330038,1.20745,2755.9,2755.3,11.505]
[1646820330542,1.20745,2755.9,2755.4,1.05860725]
[1646820330744,1.20745,2755.9,2755.3,0.445]
[1646820332186,1.20745,2755.9,2755.4,0.1814]
[1646820332389,1.20745,2755.9,2755.4,0.6264]
[1646820332689,0.3,2755.9,2755.5,13.08168474]
[1646820332892,0.3,2756.2,2755.7,11.06]
[1646820333087,0.30239804,2756.2,2755.8,0.445]
[1646820333888,0.3,2756.2,2755.9,11.06]
[1646820334089,1.8142,2756.3,2756.0,11.505]
[1646820334289,0.00239838,2756.2,2756.1,0.445]
[1646820334893,0.02463951,2755.8,2755.4,1.1814]
[1646820335092,1.83926951,2755.8,2755.5,1.5598982]
[1646820335345,0.32463951,2755.8,2755.6,0.90716]
[1646820335549,0.02463951,2755.8,2755.7,11.505]
[1646820335746,0.02463951,2755.8,2755.7,12.505]
[1646820336546,0.02463951,2755.8,2755.7,0.445]
[1646820340289,0.02463951,2755.8,2755.7,1.56504314]
[1646820340793,0.02463951,2755.8,2755.7,12.62504314]
[1646820341189,0.02463951,2755.8,2755.7,13.62504314]
[1646820341791,0.00239817,2756.2,2755.7,13.80644314]
[1646820341989,0.00239817,2756.2,2755.9,11.06]
[1646820342188,9.817e-05,2756.2,2756.1,11.06]
[1646820342390,2.72073,2757.1,2756.1,14.43885314]
[1646820342589,0.00239834,2756.2,2756.1,14.31881]
[1646820342837,0.90566518,2756.8,2756.1,15.43956467]
[1646820343039,0.90566518,2756.8,2756.3,11.06]
[1646820343241,0.90566518,2756.8,2756.5,11.06]
[1646820343442,0.90566518,2756.8,2756.6,12.62553145]
[1646820343639,1.81259518,2756.8,2756.6,11.505]
[1646820344041,1.81259518,2756.8,2756.6,12.505]
[1646820344241,1.81396,2756.9,2756.7,12.18028248]
[1646820344242,0.3,2756.9,2756.7,12.18028248]
[1646820344440,0.3,2756.9,2756.8,11.505]
[1646820344643,0.9068,2757.2,2756.8,11.505]
[1646820344841,1.81362,2757.2,2756.8,12.505]
[1646820346244,2.11362,2757.2,2756.8,12.505]
[1646820348389,2.11362,2757.2,2756.8,0.445]
[1646820348592,0.00238673,2757.1,2756.8,0.445]
[1646820349388,0.00238673,2757.1,2756.9,11.06]
[1646820349590,2.11362,2757.2,2757.0,11.505]
[1646820349791,0.02365281,2757.1,2757.0,12.06]
[1646820349993,0.02365281,2757.1,2757.0,12.505]
[1646820350252,0.5438,2757.8,2757.0,12.505]
[1646820350253,3.16849473,2757.9,2757.7,1.81367]
[1646820350450,0.371306,2758.0,2757.7,1.81367]
[1646820350451,0.34919886,2757.8,2757.7,1.81367]
[1646820351055,0.371306,2758.0,2757.7,1.81367]
[1646820351056,0.34919886,2757.9,2757.7,1.81367]
[1646820351453,0.34919886,2757.9,2757.7,1.76367]
[1646820352756,0.34919886,2757.9,2757.5,0.60211367]
[1646820352757,0.64919886,2757.9,2757.5,0.60211367]
[1646820352955,0.34919886,2757.8,2757.5,0.60211367]
[1646820353153,0.64919886,2757.8,2757.5,0.60211367]
[1646820353355,0.34919886,2757.7,2757.4,0.90705]
[1646820354588,0.35157962,2757.7,2757.4,0.90705]
[1646820354988,0.35157962,2757.7,2757.4,2.03303]
[1646820355588,0.34919886,2757.7,2757.4,2.03303]
[1646820355789,0.35157962,2757.7,2757.4,2.03303]
[1646820356791,0.34919886,2757.7,2757.4,2.03303]
[1646820356990,0.35157962,2757.7,2757.4,2.03303]
[1646820358037,0.34919886,2757.7,2757.4,2.03303]
[1646820358235,0.35157962,2757.7,2757.4,2.03303]
[1646820358843,0.34919886,2757.6,2757.4,2.03303]
[1646820359044,0.02184284,2757.9,2757.4,2.03303]
[1646820359239,0.35080353,2757.8,2757.4,2.03303]
[1646820359440,0.00238076,2757.7,2757.4,2.03303]
[1646820360243,0.35080353,2757.8,2757.4,2.03303]
[1646820360839,0.02402123,2757.7,2757.4,2.03303]
[1646820361041,0.35080353,2757.6,2757.4,2.03303]
[1646820361240,0.35080353,2757.5,2757.4,2.03303]
[1646820361698,0.34449987,2757.5,2757.4,3.17131096]
[1646820361894,0.02402123,2757.7,2757.4,2.03303]
[1646820361895,0.34449987,2757.6,2757.4,2.03303]
[1646820362595,0.34453994,2757.5,2757.4,2.03303]
[1646820363095,0.34453994,2757.6,2757.4,2.03303]
[1646820363295,0.34453994,2757.5,2757.4,2.03303]
[1646820363897,0.34453994,2757.6,2757.4,2.03303]
[1646820364201,0.0023746,2757.8,2757.4,2.03303]
[1646820364595,0.34442554,2757.9,2757.4,2.03303]
[1646820365235,0.66996028,2758.3,2757.4,2.03303]
[1646820365236,0.02396942,2757.6,2757.4,2.03303]
[1646820365841,0.66996028,2758.4,2757.4,2.03303]
[1646820366040,0.96996028,2758.4,2757.4,2.03303]
[1646820366642,0.66996028,2758.4,2757.4,2.03303]
[1646820366945,0.96996028,2758.4,2758.0,2.00323819]
[1646820367141,0.96996028,2758.4,2758.0,0.41049741]
[1646820367342,0.3,2758.4,2758.0,0.41049741]
[1646820367541,0.96996028,2758.5,2757.9,2.11362]
[1646820367740,0.96996028,2758.5,2757.9,1.81362]
[1646820367943,0.3,2758.5,2757.8,1.4258]
[1646820368342,0.99271128,2758.6,2757.8,1.4258]
[1646820368542,0.99271128,2758.6,2757.8,1.1258]
[1646820368742,3.3,2758.5,2757.8,1.1258]
[1646820369003,0.00236887,2758.3,2757.8,1.4258]
[1646820369186,0.00236887,2758.3,2757.8,1.1258]
[1646820369386,0.00236887,2758.3,2757.8,2.03257]
[1646820369785,0.00236887,2758.3,2757.8,0.90677]
[1646820369986,0.322751,2758.6,2757.8,0.90677]
[1646820370186,0.00236887,2758.2,2757.8,0.90677]
[1646820371192,0.322751,2758.6,2757.8,0.90677]
[1646820371390,0.00236887,2758.1,2757.8,0.90677]
[1646820372491,0.322751,2758.6,2757.8,0.90677]
[1646820372735,0.00236887,2758.1,2757.8,0.90677]
[1646820373536,0.322751,2758.6,2757.8,0.90677]
[1646820373936,0.00236887,2758.1,2757.8,0.90677]
[1646820375841,0.322751,2758.6,2757.8,0.90677]
[1646820376242,0.0019927,2758.1,2757.8,0.90677]
[1646820377082,0.322751,2758.6,2757.8,0.90677]
[1646820377384,0.322751,2758.6,2758.1,0.92319735]
[1646820377587,0.322751,2758.6,2758.2,3.5]
[1646820377588,0.66996028,2758.3,2758.2,3.5]
[1646820377784,1.90616028,2759.1,2758.2,0.445]
[1646820378182,2.8185,2759.2,2758.2,0.8076]
[1646820378382,2.8185,2759.2,2758.2,4.3076]
[1646820378584,0.00096,2759.3,2758.2,4.3076]
[1646820378585,0.0019927,2758.8,2758.7,1.05955991]
[1646820378782,0.0019927,2758.8,2758.7,1.50455991]
[1646820379581,0.96996028,2759.3,2758.7,1.50455991]
[1646820379784,0.00236887,2758.9,2758.7,1.50455991]
[1646820380841,0.96996028,2759.3,2758.7,1.50455991]
[1646820381042,0.00236887,2758.9,2758.8,1.81264]
[1646820381641,0.00236887,2758.9,2758.5,0.445]
[1646820381842,0.3,2759.2,2758.5,0.445]
[1646820382044,0.3,2759.2,2758.5,1.35141]
[1646820382245,0.00236887,2759.0,2758.5,1.35141]
[1646820382648,0.00236887,2759.0,2758.5,2.47506622]
[1646820382845,0.88803863,2759.5,2758.5,2.47506622]
[1646820382846,0.63262915,2759.5,2758.5,2.47506622]
[1646820383146,0.63166915,2759.5,2758.5,5.97506622]
[1646820383345,0.63166915,2759.5,2758.8,1.81254]
[1646820384088,0.88707863,2759.7,2758.8,1.81254]
[1646820384288,1.18707863,2759.7,2758.8,1.81254]
[1646820384689,2.06963863,2759.9,2759.4,1.14875335]
[1646820384888,0.88707863,2759.9,2759.4,1.14875335]
[1646820385090,0.022751,2760.0,2759.4,1.14875335]
[1646820385091,0.90982963,2760.0,2759.4,1.14875335]
[1646820385294,0.288675,2759.9,2759.4,1.14875335]
[1646820385490,0.288675,2759.9,2759.5,0.445]
[1646820386093,0.288675,2759.9,2759.5,1.3512]
[1646820386290,1.19850463,2760.0,2759.5,1.3512]
[1646820386496,0.288675,2759.9,2759.5,1.3512]
[1646820386691,0.288675,2759.8,2759.1,0.2693824]
[1646820386891,0.288675,2759.7,2759.1,0.2693824]
[1646820387094,0.288675,2759.6,2759.1,0.0882824]
[1646820387291,0.288675,2759.5,2759.0,0.25462907]
[1646820387492,0.288675,2759.4,2759.0,0.25462907]
[1646820387750,0.288675,2759.3,2758.7,0.1811]
[1646820387941,0.288675,2759.2,2758.7,0.1811]
[1646820388139,0.288675,2759.1,2758.7,0.1811]
[1646820388339,0.288675,2759.0,2758.7,0.1811]
[1646820388539,0.288675,2758.9,2758.7,0.1811]
[1646820388740,0.288675,2758.8,2758.7,0.1811]
[1646820389540,0.288675,2758.8,2758.5,1.3497]
[1646820389739,0.288675,2758.7,2758.4,2.7215]
[1646820389942,0.00236279,2759.1,2758.2,2.104168]
[1646820390140,0.00236279,2759.1,2758.3,1.19685288]
[1646820390343,0.28408695,2759.4,2758.9,0.96562675]
[1646820390547,0.28312695,2759.3,2758.2,2.104168]
[1646820390743,0.00236258,2759.1,2758.3,1.20614196]
[1646820391588,0.00096,2759.5,2758.2,2.104168]
[1646820391589,0.28312695,2759.2,2758.2,2.104168]
[1646820391788,0.28548966,2759.1,2758.6,0.87751582]
[1646820391989,0.28312695,2759.0,2758.6,1.78391582]
[1646820392189,0.28312695,2758.9,2758.6,1.78391582]
[1646820392488,0.00236271,2759.1,2758.6,1.78391582]
[1646820392489,0.28312695,2758.8,2758.6,1.78391582]
[1646820392688,0.00096,2759.5,2758.6,1.78391582]
[1646820392689,0.28312695,2758.7,2758.6,1.78391582]
[1646820395238,0.28312695,2758.7,2758.6,0.87751582]
[1646820397045,0.27030995,2758.7,2758.6,0.87751582]
[1646820397245,0.00236266,2759.1,2758.6,0.87751582]
[1646820397645,0.66548283,2759.3,2758.7,0.90631]
[1646820397846,0.00236266,2759.1,2758.7,0.90631]
[1646820398253,0.27267261,2759.1,2758.8,0.445]